Cogmind - Beta 14 @@@ ROGUE MODE // 2025.01.01 @ 22:58:47 Player: SuperSwiss Result: Self-destructed Performance ------------- Evolutions (1) 500 Regions Visited (2) 400 Robots Destroyed (17) 85 Value Destroyed (536) 536 Prototype IDs (2) 40 Alien Tech Used (0) 0 Bonus (200) 200 TOTAL SCORE: 1761 Bonus ------- Pacifist 200 Cogmind --------- Core Integrity 9/400 Matter 288/300 Energy 265/265 System Corruption 0% Temperature Cool (0) Movement Walking (120) Location -9/Materials Parts ------- > --- POWER (1) -------- Improved Ion Engine > --- PROPULSION (2) --- Aluminum Leg Aluminum Leg > --- UTILITY (3) ------ Cooling System Small Storage Unit > --- WEAPON (3) ------- Heavy Assault Rifle > --- INVENTORY (8) ---- Aluminum Leg Aluminum Leg Aluminum Leg Flight Unit Improved Flight Unit Huge Storage Unit Grenade Launcher Peak State ------------ > --- POWER ------------ Improved Ion Engine > --- PROPULSION ------- Aluminum Leg Aluminum Leg > --- UTILITY ---------- Cooling System Small Storage Unit > --- WEAPON ----------- Improved Medium Laser Advanced Beam Cannon Heavy Assault Rifle > --- INVENTORY -------- Aluminum Leg Aluminum Leg Aluminum Leg Flight Unit Huge Storage Unit Grenade Launcher [Rating: 15] Favorites ----------- Power Light Ion Engine Engine Light Ion Engine Propulsion Aluminum Leg Leg Aluminum Leg Utility Small Storage Unit Device Sensor Array Storage Small Storage Unit Weapon Assault Rifle Energy Gun Improved Medium Laser Energy Cannon Advanced Beam Cannon Ballistic Gun Assault Rifle Build | -11 -10 -9 ------- Run | Yrd Mat Mat Slots Evolved 2 | . . 2 Power . | . . . Propulsion . | . . . Utility 1 | . . 1 Weapon 1 | . . 1 Parts Attached 22 | 7 2 13 Power 3 | 1 . 2 Engine 3 | 1 . 2 Core . | . . . Reactor . | . . . Propulsion 4 | 2 . 2 Treads . | . . . Leg 4 | 2 . 2 Wheel . | . . . Hover . | . . . Flight . | . . . Utility 4 | 1 1 2 Device 2 | . 1 1 Storage 2 | 1 . 1 Processor . | . . . Hackware . | . . . Protection . | . . . Artifact . | . . . Weapon 11 | 3 1 7 Energy Gun 1 | . . 1 Energy Cannon 1 | . . 1 Ballistic Gun 9 | 3 1 5 Ballistic Cannon . | . . . Launcher . | . . . Special Weapon . | . . . Impact Weapon . | . . . Slashing Weapon . | . . . Piercing Weapon . | . . . Special Melee Weapon . | . . . Unidentified Prototypes 2 | . . 2 Parts Lost 10 | . . 10 Power 2 | . . 2 Propulsion 2 | . . 2 Utility 1 | . . 1 Weapon 5 | . . 5 Highest Loss Streak 7 | . . 7 To Critical Strikes . | . . . Average Slot Usage (%) 72 | . 93 67 Engine 9 | . 14 8 Leg 20 | . 28 18 Device 6 | . 8 6 Storage 11 | . 14 11 Ballistic Gun 23 | . 28 22 Peak Build Rating 15 | 6 7 15 Average Rating 6 | 2 6 7 On Entrance 4 | . 6 7 Naked Turns . | . . . Heaviest Build 24 | 11 13 24 Greatest Support 20 | 20 20 20 Greatest Overweight (x) 3 | 1 . 3 Average Overweight (x) . | . . . Largest Inventory Capacity 25 | 8 8 25 Average Capacity 7 | 5 8 8 Most Carried 8 | 5 5 8 Average Carried 5 | 3 3 5 Final Capacity 8 | 8 8 8 Final Carried 7 | 2 5 7 Class Distribution -------------------- 63% | Mutant 32% | Skirmisher 4% | Gunner Dominant Class ---------------- Mutant | -10/Materials Mutant | -9/Materials Resources | -11 -10 -9 ----------- Run | Yrd Mat Mat Matter Collected 610 | 211 . 399 Remotely . | . . . Salvage Created 766 | . . 766 Parts 46 | . . 46 Haulers Intercepted 2 | . . 2 Recyclers Shooed 1 | . . 1 Parts Field Recycled . | . . . Retrieved Matter . | . . . Parts Self-Destructed . | . . . Prevented . | . . . Kills | -11 -10 -9 ------- Run | Yrd Mat Mat Combat Hostiles Destroyed 15 | . . 15 Guns 15 | . . 15 Classes Destroyed 4 | . . 4 Hauler 2 | . . 2 Swarmer 2 | . . 2 Grunt 9 | . . 9 Sentry 4 | . . 4 Best Kill Streak 3 | . . 3 Combat Bots Only 3 | . . 3 Max Kills in Single Turn 1 | . . 1 Gunslinging . | . . . Exploded . | . . . Melee . | . . . Uniques/NPCs Destroyed . | . . . Combat | -11 -10 -9 -------- Run | Yrd Mat Mat Hostile Shots Fired 174 | . . 174 Missed 48 | . . 48 Damage Taken 1472 | . . 1472 Core 391 | . . 391 Absorbed by Shields . | . . . Core Remaining (%) 100 | 100 100 . Volleys Fired 73 | . . 73 Largest 3 | . . 3 Hottest 63 | . . 63 Shots Fired 114 | . . 114 Gun 114 | . . 114 Cannon . | . . . Launcher . | . . . Special . | . . . Kinetic 114 | . . 114 Thermal . | . . . Explosive . | . . . Electromagnetic . | . . . Robot Hit Streak 10 | . . 10 Robot Miss Streak 3 | . . 3 Penetration Max . | . . . Secondary Targets 1 | . . 1 Max Gunslinging Chain 1 | . . 1 Shots Hit Robots 78 | . . 78 Core Hits 32 | . . 32 Critical Kills 1 | . . 1 Critical Parts Destroyed . | . . . Critical Strikes 1 | . . 1 Destroy 1 | . . 1 Melee Attacks . | . . . Impact . | . . . Slashing . | . . . Piercing . | . . . Sneak Attacks . | . . . Combat Hostiles . | . . . Follow-up Attacks . | . . . Damage Inflicted 920 | . . 920 Guns 900 | . . 900 Cannons . | . . . Explosions . | . . . Melee . | . . . Ramming 20 | . . 20 Kinetic 900 | . . 900 Thermal . | . . . Explosive . | . . . Electromagnetic . | . . . Impact . | . . . Slashing . | . . . Piercing . | . . . Highest Corruption . | . . . Average Corruption . | . . . Corruption Purged . | . . . Corruption Blocked . | . . . Overload Shots . | . . . Overflow Damage . | . . . Projectiles . | . . . Explosions . | . . . Melee . | . . . Knockbacks . | . . . Impact . | . . . Kinetic . | . . . Secondary . | . . . Self-Inflicted Damage . | . . . Shots . | . . . Rammed . | . . . Targets Rammed 3 | . . 3 Kicked 3 | . . 3 Crushed . | . . . Highest Temperature 64 | . . 64 Average Temperature 22 | . . 22 Received Heat Transfer 669 | . . 669 Siege Activations . | . . . Robots Corrupted . | . . . Combat Hostiles . | . . . Parts Fried . | . . . Impact Corruptions . | . . . Robots Melted . | . . . Combat Hostiles . | . . . Parts Melted . | . . . Heat Transferred . | . . . Parts Sabotaged . | . . . Parts Stolen . | . . . Parts Stripped . | . . . Power Chain Reactions . | . . . Alert | -11 -10 -9 ------- Run | Yrd Mat Mat Peak Influence 339 | . . 339 Initial . | . . . Average 103 | . . 134 Maximum Alert Level 1 | . . 1 Low Security (%) 77 | 100 100 70 Level 1 22 | . . 29 Level 2 . | . . . Level 3 . | . . . Level 4 . | . . . Level 5 . | . . . High Security . | . . . Max Security . | . . . Squads Dispatched 2 | . 1 1 Investigation 1 | . 1 . Extermination . | . . . Reinforcement 1 | . . 1 Assault . | . . . Garrison . | . . . Intercept . | . . . Searches Triggered . | . . . Construction Impeded . | . . . Haulers Reinforced . | . . . Active Scanning Responses . | . . . Cargo Convoy Interrupts . | . . . Stealth | -11 -10 -9 --------- Run | Yrd Mat Mat Distress Signals 3 | . . 3 Communications Jammed . | . . . Distress Signals . | . . . Times Spotted 34 | . . 34 Peak Tracking Total 12 | . . 12 Tactical Retreats 5 | . . 5 Traps | -11 -10 -9 ------- Run | Yrd Mat Mat Traps Triggered . | . . . Indirectly . | . . . Trap Hack Attempts . | . . . Triggered . | . . . Disarmed . | . . . Reprogrammed . | . . . Reused . | . . . Traps Extracted . | . . . Installed . | . . . Triggered . | . . . Machines | -11 -10 -9 ---------- Run | Yrd Mat Mat Machines Disabled . | . . . Max in Single Turn . | . . . Machines Repaired . | . . . Machines Dismantled . | . . . Machines Sabotaged . | . . . Overloaded Fab Kills . | . . . Hacking | -11 -10 -9 --------- Run | Yrd Mat Mat Machines Accessed . | . . . Terminals . | . . . Fabricators . | . . . Repair Stations . | . . . Recycling Units . | . . . Scanalyzers . | . . . Garrison Access . | . . . Total Hacks . | . . . Successful . | . . . Failed . | . . . Catastrophic . | . . . Database Lockouts . | . . . Manual . | . . . Terminals . | . . . Fabricators . | . . . Repair Stations . | . . . Recycling Units . | . . . Scanalyzers . | . . . Garrison Access . | . . . Terminal Hacks . | . . . Fabricator Hacks . | . . . Repair Station Hacks . | . . . Recycling Unit Hacks . | . . . Scanalyzer . | . . . Garrison Access Hacks . | . . . Unauthorized Hacks . | . . . Terminals . | . . . Fabricators . | . . . Repair Stations . | . . . Recycling Units . | . . . Scanalyzers . | . . . Garrison Access . | . . . Data Cores Recovered . | . . . Used . | . . . Hacking Detections . | . . . Full Trace Events . | . . . Feedback Events . | . . . Feedback Blocked . | . . . Robot Schematics Acquired . | . . . Robots Built . | . . . Authchips . | . . . Time . | . . . Total Robot Build Rating . | . . . Part Schematics Acquired . | . . . Parts Built . | . . . Authchips . | . . . Time . | . . . Total Part Build Rating . | . . . Parts Repaired . | . . . Time . | . . . Parts Recycled . | . . . Recycled Matter . | . . . Retrieved Matter . | . . . Retrieved Components . | . . . Parts Scanalyzed . | . . . Part Schematics Acquired . | . . . Parts Damaged . | . . . Bothacking | -11 -10 -9 ------------ Run | Yrd Mat Mat Used RIF Installer . | . . . Robots Hacked . | . . . Non-combat . | . . . Combat . | . . . Robot Hacks Applied . | . . . Relay Couplers Released . | . . . Fabnet Peak Effective % . | . . . Robots Rewired . | . . . Allies Hacked . | . . . Hacks Repelled . | . . . Allies | -11 -10 -9 -------- Run | Yrd Mat Mat Total Allies . | . . . Largest Group . | . . . Highest-Rated Group . | . . . Highest-Rated Ally . | . . . Total Orders . | . . . Ally Attacks . | . . . Total Damage . | . . . Kills . | . . . Allies Corrupted . | . . . Allies Melted . | . . . Intel | -11 -10 -9 ------- Run | Yrd Mat Mat Robot Analysis Total . | . . . Derelict Logs Recovered . | . . . Drone Launches . | . . . Drone Recoveries . | . . . Exploration | -11 -10 -9 ------------- Run | Yrd Mat Mat Turns Passed 945 | 45 171 729 Spaces Moved 557 | 39 138 380 Core 46 | 35 . 11 Treads . | . . . Legs 511 | 4 138 369 Wheels . | . . . Hover . | . . . Flight . | . . . Fastest Speed 50 | 50 120 100 Average Speed 120 | 81 120 125 Slowest Speed 200 | 120 120 200 Overloaded Moves . | . . . Propulsion Burnouts . | . . . Robots Hopped . | . . . Cave-ins Triggered . | . . . Exploration Rate (%) 19 | 3 27 27 Regions Visited 2 Branch Regions . Pre-discovered Areas . | . . . Known Exits Taken . | . . . Unknown Exits Taken 2 | 1 1 . Scrap Searched . | . . . Spaces Dug . | . . . Terrain Destroyed . | . . . Melee . | . . . Projectile . | . . . AOE . | . . . Terrain Rammed . | . . . Walls Destroyed . | . . . Machines Disabled . | . . . Actions | -11 -10 -9 --------- Run | Yrd Mat Mat Total 730 | 50 143 537 Wait 52 | . . 52 Move 555 | 38 137 380 Hop . | . . . Pick Up 22 | 5 4 13 Fast Attach 3 | 3 . . Attach 16 | 3 1 12 Detach 1 | . . 1 Swap 3 | 1 1 1 Drop 2 | . . 2 Fire 73 | . . 73 Melee . | . . . Ram . | . . . Kick 3 | . . 3 Crush . | . . . Escape Stasis . | . . . Rewire . | . . . Trap . | . . . Miscellaneous . | . . . Route ------- -11/Scrapyard -10/Materials -9/Materials History --------- Turn | Location | Event 6 | -11/Scrapyard | Discovered new exit (range 16) 46 | -11/Scrapyard | Entered Materials 186 | -10/Materials | Discovered new exit (range 7) 217 | -10/Materials | Entered another Materials area 217 | -9/Materials | Evolved 2 slots: Utility x1, Weapon x1 506 | -9/Materials | Build established: Skirmisher 558 | -9/Materials | Core integrity fell below 50% 568 | -9/Materials | Core integrity fell below 20% 589 | -9/Materials | Lost 7 parts (1p2n1u3w) 867 | -9/Materials | Build established: Mutant 946 | -9/Materials | Self-destructed Last Messages --------------- 00819_ Acquired Prototype Energy Gun. 00820_ Identified Imp. Medium Laser. 00821_ Acquired 16 matter. 00825_ Acquired Prototype Energy Cannon. 00826_ Identified Adv. Beam Cannon. 00826_ Imp. Medium Laser broken. 00826_ Faulty integration triggers power surge. 00840_ G-34 Mercenary destroyed. 00845_ Dropped Faulty Adv. Beam Cannon. 00846_ Dropped Broken Imp. Medium Laser. 00851_ K-01 Serf collects debris. 00858_ Acquired 17 matter. 00859_ K-01 Serf collects debris. 00861_ Acquired 25 matter. 00862_ K-01 Serf collects debris. 00864_ Acquired 14 matter. 00884_ K-01 Serf collects debris. 00896_ Kicked W-16 Scout. 00931_ A-02 Transporter destroyed. 00945_ Acquired Prototype Flight Unit. Map ----- +----------------------------------------------------+ | | | ?????????????????????????????????????????????????? | | ?????????????????????????????????????????????????? | | #####????????????????????????????????????????????? | | ????????????????????????????????????????????? | | = #?????????########??????????????????????????? | | #?????????# #??????????????????????????? | | #?????????# """ #??????????????????????????? | | """ #?????????# "R" #?????###########??????????? | | """ #?????????# " " #?????# #??????????? | | """ #?????????# #?????# #??????????? | | #?????????# ! ####### | #??????????? | | +##################+### # #??????????? | | # #??????????? | | + #??????????? | | # #??????????? | | +##### ###+########## # [ #??????????? | | # ## #?######## ############??????????? | | """" # ## #? """ # #?????????????????????? | | """" # ## #?""""" # #?????????????????????? | | """" # ## #?""""" + #?????????????????????? | | # + [#?""""" # #?????????????????????? | | # ## #? """ #= #?????????????????????? | | ## ### # #===#?????????????????????? | | ## #?##### #%=*#?????????????????????? | | ####### #?????# #=@ #?????????????????????? | | ??????# #?????# #= #?????????????????????? | | ??????# #?????########## #?????????????????????? | | ??????#/###########????# #?????????????????????? | | ??????# ! ###### #?????????????????????? | | #####?# """ """ +% #?????????????????????? | | #!!!!## "R """ #######+######?????????????????? | | ! !# """ """= ## = #?????????????????? | | #% %! [%* ## #?????????????????? | | #/############ """ #?????????????????? | | = !! #?????# """ #?????????????????? | | ! % #?????# """ [[[ !#?????????????????? | | = = #?????# [[[ #????????????????? | | ######+###% #?????# [[ ##????????????????? | | ##! ##????#############?????????????????? | | *# % ##### #????????????????????????? | | =%#* [ #????????????????????????? | | %/=!] ??????????????????????? | | #[%= ##???????????????????????? | | #* = ##### #????????????????????????? | | ##!%*##????? ##????????????????????????? | | ! ##*=%#??????? #?????????????????????????? | | ##########==!#?????????#?????????????????????????? | | ?????????# #???????????????????????????????????? | | ?????????# #???????????????????????????????????? | +----------------------------------------------------+ Best States ------------- Heat Dissipation 50 Energy Generation 12 Energy Capacity 265 Matter Stores 300 Matter Capacity 300 Sight Range 16 Robot Scan Range 14 Terrain Scan Density 10 Evasion (%) 55 Item Schematics ----------------- None Robot Schematics ------------------ None Fabricated ------------ Nothing Alien Tech Used ----------------- None Achievements -------------- None Challenges ------------ None Game ------ Seed CoordinationIntegrityBiocell Manual? 0 Play Time 00:11:43 Cumulative 7.8 hours Start 2025.01.01 @ 22:48:15 End 2025.01.01 @ 22:58:47 Sessions 1 Manual Loads 0 Difficulty Rogue Special Mode None Game No. 14 Rogue 11 Adventurer 0 Explorer 3 Win Type - Total 0 Types 0/0/0/0/0/0/0/0/0 Lore% 0 Gallery% 11 Achievement% 10 Wizard Run 0 Options --------- Layout 1 ASCII 0 Keyboard 0 Movement Numpad Keybinds 0 Fullscreen 2 Font 24/Smallcaps Map View 50x35 Zoom Use 0% Tactical HUD 1 Map Filters NONE Filters NONE Steam 1 RUN: 2bcc8678-2479-4f35-8231-f9ce7c01a21d